fUSD/lending_fUSD_20240201
["ID","MTS","AMOUNT","RATE_DAILY","PERIOD"]
[313154429,1706823061892,-271.94761045,0.0004904,14]
[313154430,1706823061902,-271.94761045,0.0004904,14]
[313154431,1706823061911,-271.94761045,0.0004904,14]
[313154432,1706823061921,-271.94,0.0004904,14]
[313154433,1706823061932,-429.61941918,0.0004904,14]
[313154434,1706823061945,-429.61941918,0.0004904,14]
[313154435,1706823061955,-429.61941918,0.0004904,14]
[313154436,1706823061964,-429.61941918,0.0004904,14]
[313154437,1706823061975,-429.61941918,0.0004904,14]
[313154438,1706823061986,-429.61941918,0.0004904,14]
[313154439,1706823061996,-429.61941918,0.0004904,14]
[313154440,1706823062005,-429.61941918,0.0004904,14]
[313154441,1706823062016,-429.61941918,0.0004904,14]
[313154442,1706823062026,-429.61941918,0.0004904,14]
[313154443,1706823062035,-429.61941918,0.0004904,14]
[313154444,1706823062044,-429.61941918,0.0004904,14]
[313154445,1706823062054,-429.61941918,0.0004904,14]
[313154446,1706823062064,-429.61941918,0.0004904,14]
[313154447,1706823062073,-429.61941918,0.0004904,14]
[313154448,1706823062082,-429.61941918,0.0004904,14]
[313154449,1706823062091,-429.61941918,0.0004904,14]
[313154450,1706823062100,-429.61941918,0.0004904,14]
[313154451,1706823062110,-429.61941918,0.0004904,14]
[313154452,1706823062119,-429.61,0.0004904,14]
[313154453,1706823062128,-492.17209203,0.0004904,14]
[313154454,1706823062138,-492.17209203,0.0004904,14]
[313154455,1706823062147,-492.17209203,0.0004904,14]
[313154456,1706823062157,-492.17209203,0.0004904,14]
[313154457,1706823062166,-492.17209203,0.0004904,14]
[313154458,1706823062175,-492.17209203,0.0004904,14]
[313154459,1706823062185,-492.17209203,0.0004904,14]
[313154460,1706823062194,-492.17209203,0.0004904,14]
[313154461,1706823062203,-492.17209203,0.0004904,14]
[313154462,1706823062212,-492.17209203,0.0004904,14]
[313154463,1706823062222,-492.17209203,0.0004904,14]
[313154464,1706823062231,-492.17209203,0.0004904,14]
[313154465,1706823062241,-492.17209203,0.0004904,14]
[313154466,1706823062250,-492.17209203,0.0004904,14]
[313154467,1706823062259,-492.17209203,0.0004904,14]
[313154468,1706823062269,-492.17209203,0.0004904,14]
[313154469,1706823062278,-492.17209203,0.0004904,14]
[313154470,1706823062288,-492.17209203,0.0004904,14]
[313154471,1706823062297,-492.17209203,0.0004904,14]
[313154472,1706823062307,-492.17,0.0004904,14]
[313154473,1706823062316,-486.07975774,0.0004904,14]
[313154474,1706823062325,-486.07975774,0.0004904,14]
[313154475,1706823062335,-486.07975774,0.0004904,14]
[313154476,1706823062344,-486.07975774,0.0004904,14]
[313154477,1706823062354,-486.07975774,0.0004904,14]
[313154478,1706823062363,-486.07975774,0.0004904,14]
[313154479,1706823062372,-486.07975774,0.0004904,14]
[313154480,1706823062382,-486.07975774,0.0004904,14]
[313154481,1706823062391,-486.07975774,0.0004904,14]
[313154482,1706823062401,-486.07975774,0.0004904,14]
[313154483,1706823062411,-486.07975774,0.0004904,14]
[313154484,1706823062420,-486.07975774,0.0004904,14]
[313154485,1706823062429,-486.07975774,0.0004904,14]
[313154486,1706823062438,-486.07975774,0.0004904,14]
[313154487,1706823062448,-486.07975774,0.0004904,14]
[313154488,1706823062457,-486.07975774,0.0004904,14]
[313154489,1706823062467,-486.07975774,0.0004904,14]
[313154490,1706823062476,-486.07975774,0.0004904,14]
[313154491,1706823062486,-486.07975774,0.0004904,14]
[313154492,1706823062495,-486.07,0.0004904,14]
[313154493,1706823062504,-153.55670088,0.00049047,41]
[313154494,1706823062514,-183.03331683,0.00049052,30]
[313154495,1706823062523,-152.0,0.00049127,4]
[313154496,1706823062533,-190.0,0.00049131,28]
[313154497,1706823062542,-152.96391305,0.0004918,30]
[313154498,1706823062551,-500.0,0.00049205,7]
[313154499,1706823062561,-152.96391305,0.00049266,30]
[313154500,1706823062570,-2000.0,0.000493,30]
[313154501,1706823062579,-4000.0,0.000493,5]
[313154502,1706823062588,-425.65224982,0.00049315,31]
[313154503,1706823062599,-522.46,0.00049315,31]
[313154504,1706823062608,-500.0,0.00049315,31]
[313154505,1706823062617,-328.24102195,0.00049315,31]
[313154506,1706823062626,-500.0,0.00049315,2]
[313154507,1706823062635,-500.0,0.00049315,31]
[313154508,1706823062644,-366.71106456,0.00049315,120]
[313154509,1706823062656,-840.6,0.00049315,7]
[313154510,1706823062666,-500.0,0.00049315,120]
[313154511,1706823062675,-500.0,0.00049315,31]
[313154512,1706823062684,-500.0,0.00049315,2]
[313154513,1706823062693,-500.0,0.00049315,30]
[313154514,1706823062703,-500.0,0.00049315,10]
[313154515,1706823062713,-200.0,0.00049315,31]
[313154516,1706823062722,-2000.0,0.00049315,120]
[313154517,1706823062731,-500.0,0.00049315,31]
[313154518,1706823062741,-500.0,0.00049315,28]
[313154519,1706823062751,-604.72740199,0.00049315,31]
[313154520,1706823062760,-372.66028539,0.00049315,31]
[313154521,1706823062769,-316.35814983,0.00049315,31]
[313154522,1706823062778,-1000.0,0.00049315,7]
[313154523,1706823062787,-500.0,0.00049315,7]
[313154524,1706823062796,-525.34,0.00049315,7]
[313154525,1706823062805,-539.54145692,0.00049315,31]
[313154526,1706823062815,-500.0,0.00049315,31]
[313154527,1706823062825,-565.23,0.00049315,31]
[313154528,1706823062834,-500.0,0.00049315,31]
[313154529,1706823062843,-500.0,0.00049315,31]
[313154530,1706823062853,-300.0,0.00049315,31]
[313154531,1706823062862,-500.0,0.00049315,31]
[313154532,1706823062872,-500.0,0.00049315,31]
[313154533,1706823062881,-500.0,0.00049315,31]
[313154534,1706823062890,-500.0,0.00049315,31]
[313154535,1706823062900,-250.0,0.00049315,2]
[313154536,1706823062910,-543.16010165,0.00049315,12]
[313154537,1706823062919,-500.0,0.00049315,31]
[313154538,1706823062929,-500.0,0.00049315,31]
[313154539,1706823062942,-1000.0,0.00049315,7]
[313154540,1706823062951,-500.0,0.00049315,120]
[313154541,1706823062960,-343.35913742,0.00049315,31]
[313154542,1706823062969,-769.22,0.00049315,31]
[313154543,1706823062979,-500.0,0.00049315,31]
[313154544,1706823062988,-500.0,0.00049315,31]
[313154545,1706823062999,-500.0,0.00049315,31]
[313154546,1706823063008,-500.0,0.00049315,31]
[313154547,1706823063018,-500.0,0.00049315,5]
[313154548,1706823063027,-500.0,0.00049315,31]
[313154549,1706823063038,-519.24,0.00049315,31]
[313154550,1706823063047,-500.0,0.00049315,31]
[313154551,1706823063057,-500.0,0.00049315,31]
[313154552,1706823063066,-500.0,0.00049315,31]
[313154553,1706823063075,-500.0,0.00049315,31]
[313154554,1706823063085,-500.0,0.00049315,31]
[313154555,1706823063095,-500.0,0.00049315,31]
[313154556,1706823063105,-500.0,0.00049315,31]
[313154557,1706823063114,-500.0,0.00049315,31]
[313154558,1706823063123,-423.1094436,0.00049315,31]
[313154559,1706823063133,-500.0,0.00049315,5]
[313154560,1706823063142,-500.0,0.00049315,31]
[313154561,1706823063152,-500.0,0.00049315,31]
[313154562,1706823063162,-500.0,0.00049315,31]
[313154563,1706823063172,-500.0,0.00049315,31]
[313154564,1706823063182,-1406.63,0.00049315,31]
[313154565,1706823063192,-500.0,0.00049315,31]
[313154566,1706823063201,-500.0,0.00049315,31]
[313154567,1706823063210,-500.0,0.00049315,31]
[313154568,1706823063221,-500.0,0.00049315,31]
[313154569,1706823063231,-280.64931702,0.00049315,31]
[313154570,1706823063240,-500.0,0.00049315,7]
[313154571,1706823063250,-462.07847112,0.00049315,31]
[313154572,1706823063260,-500.0,0.00049315,31]
[313154573,1706823063270,-168.44,0.00049315,31]
[313154574,1706823063279,-500.0,0.00049315,31]
[313154575,1706823063290,-500.0,0.00049315,31]
[313154576,1706823063300,-500.0,0.00049315,31]
[313154577,1706823063309,-500.0,0.00049315,31]
[313154578,1706823063318,-500.0,0.00049315,31]
[313154579,1706823063327,-500.0,0.00049315,31]
[313154580,1706823063336,-500.0,0.00049315,31]
[313154581,1706823063346,-500.0,0.00049315,31]
[313154582,1706823063355,-500.0,0.00049315,31]
[313154583,1706823063365,-607.11,0.00049315,31]
[313154584,1706823063375,-500.0,0.00049315,31]
[313154585,1706823063385,-500.0,0.00049315,31]
[313154586,1706823063395,-500.0,0.00049315,31]
[313154587,1706823063406,-349.51644843,0.00049315,31]
[313154588,1706823063415,-397.88607331,0.00049315,31]
[313154589,1706823063424,-500.0,0.00049315,31]
[313154590,1706823063435,-231.6348275,0.00049315,31]
[313154591,1706823063444,-572.79115009,0.00049315,31]
[313154592,1706823063454,-601.26,0.00049315,31]
[313154593,1706823063463,-500.0,0.00049315,31]
[313154594,1706823063473,-500.0,0.00049315,31]
[313154595,1706823063484,-500.0,0.00049315,31]
[313154596,1706823063593,-500.0,0.00049315,31]
[313154597,1706823063603,-299.87219615,0.00049315,2]
[313154598,1706823063612,-1000.0,0.00049315,12]
[313154599,1706823063622,-1000.0,0.00049315,12]
[313154600,1706823063631,-1000.0,0.00049315,12]
[313154601,1706823063640,-1000.0,0.00049315,12]
[313154602,1706823063649,-1000.0,0.00049315,12]
[313154603,1706823063658,-1000.0,0.00049315,12]
[313154604,1706823063667,-1000.0,0.00049315,12]
[313154605,1706823063677,-1000.0,0.00049315,12]
[313154606,1706823063686,-1000.0,0.00049315,12]
[313154607,1706823063695,-1000.0,0.00049315,12]
[313154608,1706823063704,-1000.0,0.00049315,12]
[313154609,1706823063713,-1000.0,0.00049315,12]
[313154610,1706823063722,-1000.0,0.00049315,12]
[313154611,1706823063732,-1000.0,0.00049315,12]
[313154612,1706823063741,-1000.0,0.00049315,12]
[313154613,1706823063750,-1000.0,0.00049315,12]
[313154614,1706823063759,-1000.0,0.00049315,12]
[313154615,1706823063768,-1000.0,0.00049315,12]
[313154616,1706823063777,-1000.0,0.00049315,12]
[313154617,1706823063786,-1000.0,0.00049315,12]
[313154618,1706823063796,-1000.0,0.00049315,12]
[313154619,1706823063805,-1000.0,0.00049315,12]
[313154620,1706823063814,-1000.0,0.00049315,12]
[313154621,1706823063824,-1000.0,0.00049315,12]
[313154622,1706823063833,-1000.0,0.00049315,12]
[313154623,1706823063841,-1000.0,0.00049315,12]
[313154624,1706823063851,-1000.0,0.00049315,12]
[313154625,1706823063860,-1000.0,0.00049315,12]
[313154626,1706823063869,-597.0,0.00049315,12]
[313154627,1706823063878,-2400.0,0.00049315,15]
[313154628,1706823063887,-200.0,0.00049315,60]
[313154629,1706823063896,-155.0,0.00049317,2]
[313154630,1706823063906,-156.08841795,0.00049391,30]
[313154631,1706823063916,-2180.0,0.00049401,30]
[313154632,1706823063925,-432.0,0.00049401,30]
[313154633,1706823063937,-400.0,0.00049484,31]
[313154634,1706823063946,-2000.0,0.000495,30]
[313154635,1706823063955,-200.0,0.000495,2]
[313154636,1706823063964,-483940.04960968,0.00049501,7]
[313154637,1706823063974,-152.96391305,0.0004956,30]
[313154638,1706823063985,-205.0,0.00049565,44]
[313154639,1706823063994,-430.94,0.00049585,2]
[313154640,1706823064005,-522.46,0.00049589,31]
[313154641,1706823064016,-500.0,0.00049589,31]
[313154642,1706823064027,-500.0,0.00049589,2]
[313154643,1706823064036,-840.6,0.00049589,7]
[313154644,1706823064045,-500.0,0.00049589,120]
[313154645,1706823064055,-500.0,0.00049589,31]
[313154646,1706823064065,-500.0,0.00049589,2]
[313154647,1706823064074,-500.0,0.00049589,30]
[313154648,1706823064083,-500.0,0.00049589,10]
[313154649,1706823064092,-510.30789798,0.00049589,28]
[313154650,1706823064103,-1000.0,0.00049589,7]
[313154651,1706823064112,-508.32880319,0.00049589,7]
[313154652,1706823064122,-525.34,0.00049589,7]
[313154653,1706823064131,-395.96,0.00049589,31]
[313154654,1706823064140,-245.08699983,0.00049589,31]
[313154655,1706823064150,-500.0,0.00049589,31]
[313154656,1706823064160,-500.0,0.00049589,31]
[313154657,1706823064169,-482.05097568,0.00049589,31]
[313154658,1706823064179,-500.0,0.00049589,31]
[313154659,1706823064188,-500.0,0.00049589,31]
[313154660,1706823064197,-361.44,0.00049589,31]
[313154661,1706823064206,-1000.0,0.00049589,7]
[313154662,1706823064216,-540.95,0.00049589,120]
[313154663,1706823064226,-769.22,0.00049589,31]
[313154664,1706823064235,-448.14963274,0.00049589,31]
[313154665,1706823064245,-570.0,0.00049589,31]
[313154666,1706823064254,-500.0,0.00049589,31]
[313154667,1706823064263,-500.0,0.00049589,5]
[313154668,1706823064272,-343.96,0.00049589,31]
[313154669,1706823064282,-339.88,0.00049589,31]
[313154670,1706823064291,-500.0,0.00049589,31]
[313154671,1706823064301,-500.0,0.00049589,31]
[313154672,1706823064311,-500.0,0.00049589,31]
[313154673,1706823064320,-407.28,0.00049589,31]
[313154674,1706823064330,-500.0,0.00049589,5]
[313154675,1706823064339,-500.0,0.00049589,31]
[313154676,1706823064348,-500.0,0.00049589,31]
[313154677,1706823064358,-1406.63,0.00049589,31]
[313154678,1706823064367,-205.0846,0.00049589,31]
[313154679,1706823064376,-448.29,0.00049589,31]
[313154680,1706823064385,-500.0,0.00049589,31]
[313154681,1706823064395,-500.0,0.00049589,31]
[313154682,1706823064405,-500.0,0.00049589,7]
[313154683,1706823064415,-500.0,0.00049589,31]
[313154684,1706823064424,-500.0,0.00049589,31]
[313154685,1706823064433,-500.0,0.00049589,31]
[313154686,1706823064442,-500.0,0.00049589,31]
[313154687,1706823064451,-500.0,0.00049589,31]
[313154688,1706823064461,-500.0,0.00049589,31]
[313154689,1706823064470,-354.47,0.00049589,31]
[313154690,1706823064479,-500.0,0.00049589,31]
[313154691,1706823064489,-457.37949625,0.00049589,31]
[313154692,1706823064500,-500.0,0.00049589,31]
[313154693,1706823064509,-500.0,0.00049589,31]
[313154694,1706823064519,-499.99999999,0.00049589,31]
[313154695,1706823064528,-500.0,0.00049589,31]
[313154696,1706823064537,-175.48,0.00049589,31]
[313154697,1706823064546,-152.96391305,0.00049599,30]
[313154698,1706823064555,-205.0,0.000496,60]
[313154699,1706823064564,-22454.42901305,0.00049635,5]
[313154700,1706823064573,-152.96391305,0.00049638,30]
[313154701,1706823064583,-500.0,0.00049644,14]
[313154702,1706823064592,-152.96391305,0.00049657,30]
[313154703,1706823064602,-152.96391305,0.00049673,30]
[313154704,1706823064611,-15504.86,0.000497,35]
[313154705,1706823064621,-150.0,0.0004974,2]
[313154706,1706823064630,-152.96391305,0.00049742,30]
[313154707,1706823064640,-2047.72134219,0.00049742,5]
[313154708,1706823064652,-150.0,0.00049748,2]
[313154709,1706823064661,-152.96391305,0.00049776,30]
[313154710,1706823064671,-2793.28,0.000498,6]
[313154711,1706823064681,-2793.28,0.000498,6]
[313154712,1706823064691,-2793.28,0.000498,6]
[313154713,1706823064702,-2793.28,0.000498,6]
[313154714,1706823064711,-2793.28,0.000498,6]
[313154715,1706823064721,-2793.28,0.000498,6]
[313154716,1706823064731,-2793.28,0.000498,6]
[313154717,1706823064741,-2793.28,0.000498,6]
[313154718,1706823064750,-2793.28,0.000498,6]
[313154719,1706823064759,-2793.28,0.000498,6]
[313154720,1706823064769,-2793.28,0.000498,6]
[313154721,1706823064778,-2793.28,0.000498,6]
[313154722,1706823064787,-2793.28,0.000498,6]
[313154723,1706823064798,-2793.28,0.000498,6]
[313154724,1706823064807,-2793.28,0.000498,6]
[313154725,1706823064816,-2793.28,0.000498,6]
[313154726,1706823064827,-2793.28,0.000498,6]
[313154727,1706823064836,-2793.28,0.000498,6]
[313154728,1706823064845,-2793.28,0.000498,6]
[313154729,1706823064856,-2793.28,0.000498,6]
[313154730,1706823064865,-153.85,0.000498,6]
[313154731,1706823064875,-153.85,0.000498,6]
[313154732,1706823064885,-153.85,0.000498,6]
[313154733,1706823064895,-153.85,0.000498,6]
[313154734,1706823064906,-153.85,0.000498,6]
[313154735,1706823064916,-153.85,0.000498,6]
[313154736,1706823064925,-153.85,0.000498,6]
[313154737,1706823064938,-522.46,0.00049863,31]
[313154738,1706823064947,-500.0,0.00049863,31]
[313154739,1706823064956,-600.13,0.00049863,2]
[313154740,1706823064965,-840.6,0.00049863,7]
[313154741,1706823064975,-500.0,0.00049863,31]
[313154742,1706823064984,-500.0,0.00049863,2]
[313154743,1706823064994,-500.0,0.00049863,30]
[313154744,1706823065003,-500.0,0.00049863,10]
[313154745,1706823065014,-1000.0,0.00049863,7]
[313154746,1706823065023,-525.34,0.00049863,7]
[313154747,1706823065033,-402.82,0.00049863,31]
[313154748,1706823065042,-594.74200442,0.00049863,31]
[313154749,1706823065052,-535.17363938,0.00049863,31]
[313154750,1706823065062,-500.0,0.00049863,31]
[313154751,1706823065071,-1000.0,0.00049863,7]
[313154752,1706823065081,-769.22,0.00049863,31]
[313154753,1706823065093,-500.0,0.00049863,5]
[313154754,1706823065103,-222.85,0.00049863,31]
[313154755,1706823065112,-262.9,0.00049863,31]
[313154756,1706823065122,-500.0,0.00049863,31]
[313154757,1706823065132,-500.0,0.00049863,5]
[313154758,1706823065141,-500.0,0.00049863,31]
[313154759,1706823065153,-500.0,0.00049863,31]
[313154760,1706823065163,-1406.63,0.00049863,31]
[313154761,1706823065173,-500.0,0.00049863,31]
[313154762,1706823065183,-500.0,0.00049863,31]
[313154763,1706823065192,-455.56969479,0.00049863,7]
[313154764,1706823065202,-500.0,0.00049863,31]
[313154765,1706823065211,-500.0,0.00049863,31]
[313154766,1706823065221,-500.0,0.00049863,31]
[313154767,1706823065230,-500.0,0.00049863,31]
[313154768,1706823065239,-500.0,0.00049863,31]
[313154769,1706823065249,-500.0,0.00049863,31]
[313154770,1706823065259,-500.0,0.00049863,31]
[313154771,1706823065268,-500.0,0.00049863,31]
[313154772,1706823065279,-500.0,0.00049863,31]
[313154773,1706823065289,-700.0,0.0004987,3]
[313154774,1706823065298,-153.55670088,0.0004989,44]
[313154775,1706823065308,-152.96391305,0.0004989,30]
[313154776,1706823065317,-1097.0,0.0004989,2]
[313154777,1706823065326,-1002.0,0.0004989,2]
[313154778,1706823065336,-1149.75463397,0.00049895,30]
[313154779,1706823065345,-1999.99999901,0.00049898,31]
[313154780,1706823065354,-20388.86205271,0.000499,30]
[313154781,1706823065364,-1004.00616395,0.000499,4]
[313154782,1706823065373,-166.1014922,0.000499,30]
[313154783,1706823065383,-2180.0,0.000499,30]
[313154784,1706823065392,-432.0,0.000499,30]
[313154785,1706823065403,-1164.21229872,0.000499,30]
[313154786,1706823065412,-150.0,0.000499,40]
[313154787,1706823065421,-1000.0,0.000499,2]
[313154788,1706823065431,-3281.9332488,0.00049975,120]
[313154789,1706823065440,-740.19563296,0.0004998,15]
[313154790,1706823065450,-152.96391305,0.00049986,30]
[313154791,1706823065459,-200.0,0.00049987,19]
[313154792,1706823065469,-200.0,0.00049987,9]
[313154793,1706823065478,-3852839.06553561,0.0004999,30]
[313154794,1706823065808,-276.31784095,0.00022999,2]
[313154795,1706823065817,-3306.75797983,0.00022999,2]
[313154796,1706823065827,-403.0197137,0.00036,2]
[313154797,1706823065837,-403.0197137,0.00036,2]
[313154798,1706823065846,-403.0197137,0.00036,2]
[313154799,1706823065856,-403.0197137,0.00036,2]
[313154800,1706823065865,-403.0197137,0.00036,2]
[313154801,1706823065874,-403.0197137,0.00036,2]
[313154802,1706823065883,-403.0197137,0.00036,2]
[313154803,1706823065893,-416.91,0.00038904,2]
[313154804,1706823065904,-717.47,0.00039,7]
[313154805,1706823065913,-639.402948,0.00045753,14]
[313154806,1706823065923,-732.26314272,0.00047,45]
[313154807,1706823065934,-20299.0,0.00048902,30]
[313154808,1706823065944,-20299.0,0.00049401,30]
[313154809,1706823065953,-20299.0,0.000499,30]
[313154810,1706823065962,-614.97,0.000499,14]
[313154811,1706823065972,-18495.26268369,0.0004999,30]
[313154812,1706823065984,-347.44581063,0.0004999,30]
[313154813,1706823065995,-73782.27743105,0.0004999,30]
[313154814,1706823066029,-43265.64540525,0.0004999,30]
[313154815,1706823153975,204.0,0.0002174,2]
[313154836,1706823548432,152.56,0.00022045,2]
[313154837,1706823548652,152.56,0.00022134,2]
[313154838,1706823548885,152.56,0.00022222,2]
[313154839,1706823549116,152.56,0.0002231,2]
[313154840,1706823549341,152.56,0.00022399,2]
[313154841,1706823549550,152.56,0.00022487,2]
[313154842,1706823705954,298.16,0.00020856,2]
[313154847,1706823824589,404.62,0.00021842,2]
[313154853,1706823877872,23890.0,0.00022346,2]
[313154854,1706823889373,1268.42,0.00021842,2]
[313154855,1706823893950,868.8,0.00022295,2]
[313154856,1706823901171,712.95,0.00022295,2]
[313154857,1706823901870,200.0,0.00022295,2]
[313154858,1706823919612,219.14,0.00022295,2]
[313154859,1706823973293,152.56,0.00022006,2]
[313154860,1706823973562,152.56,0.00022169,2]
[313154861,1706823974130,152.56,0.00022333,2]
[313154862,1706823974341,152.56,0.00022497,2]
[313154863,1706823994511,2000.0,0.00021842,2]
[313154864,1706824047388,2092.2,0.0002248,2]
[313154865,1706824074704,250.0,0.00022465,2]
[313154867,1706824174483,283.25,0.00020817,2]
[313154893,1706824232094,-250.0,0.00022548,2]
[313154894,1706824232104,-792.42601603,0.0002255,2]
[313154895,1706824232116,-70.03398397,0.0002255,2]
[313154896,1706824232126,-163.06984124,0.00022568,2]
[313154897,1706824232134,-152.56,0.00022661,2]
[313154898,1706824232144,-207.50074089,0.00022667,2]
[313154899,1706824232153,-810.40941787,0.00022668,2]
[313154900,1706824232167,-792.99802951,0.00022668,2]
[313154901,1706824232179,-673.01,0.00022668,2]
[313154902,1706824232203,-1009.80580665,0.00022668,2]
[313154903,1706824232262,-2472.68673685,0.00022668,2]
[313154904,1706824232285,-547.03,0.00022668,2]
[313154905,1706824232298,-1250.0,0.00022668,2]
[313154906,1706824232385,-468.15,0.00022668,2]
[313154907,1706824232398,-576.35796011,0.00022668,2]
[313154908,1706824232411,-10597.49830568,0.00022668,2]
[313154909,1706824232421,-269.68289212,0.00022668,2]
[313154910,1706824232431,-4954.9037,0.00022699,2]
[313154911,1706824232440,-1552.1895,0.00022699,2]
[313154912,1706824232450,-287.03306979,0.00022798,3]
[313154913,1706824232460,-557.15402815,0.00022798,2]
[313154914,1706824232469,-73533.3799,0.00022799,2]
[313154915,1706824232479,-397.8618,0.00022799,2]
[313154916,1706824232489,-2500.0,0.00022799,2]
[313154917,1706824232498,-436.36,0.00022799,2]
[313154919,1706824232508,-1404.17,0.00022799,2]
[313154921,1706824232518,-1830.6375,0.000228,2]
[313154922,1706824232527,-1993.49,0.000228,2]
[313154923,1706824232539,-152.56,0.00022825,2]
[313154924,1706824232549,-170.76794831,0.00022888,2]
[313154925,1706824232558,-1153.75350663,0.00022897,2]
[313154926,1706824232568,-297.1012333,0.00022897,2]
[313154927,1706824232577,-264.55629569,0.00022897,2]
[313154928,1706824232586,-191.04557841,0.00022897,2]
[313154929,1706824232596,-327.734199,0.00022897,2]
[313154930,1706824232606,-3022.43755205,0.00022897,2]
[313154931,1706824232615,-501.82966339,0.00022897,2]
[313154932,1706824232626,-199.80077813,0.00022897,2]
[313154933,1706824232635,-1071.57950665,0.00022897,2]
[313154934,1706824232644,-1600.0,0.00022897,2]
[313154935,1706824232654,-10486.82282849,0.00022897,2]
[313154936,1706824232663,-210.10824909,0.00022897,2]
[313154937,1706824232672,-1061.27262846,0.00022897,2]
[313154938,1706824232682,-16948.62560712,0.00022898,2]
[313154939,1706824232692,-69937.6037,0.00022899,2]
[313154940,1706824232701,-762.1725,0.00022899,2]
[313154941,1706824232711,-26136.0222,0.00022899,2]
[313154942,1706824232720,-791.9643,0.00022899,2]
[313154943,1706824232730,-1855.52161963,0.000229,2]
[313154944,1706824232742,-612.83195705,0.000229,2]
[313154950,1706824238028,-822.49017547,0.000229,2]
[313154951,1706824238039,-621.94,0.000229,2]
[313154952,1706824238085,-4310.94408822,0.000229,2]
[313154953,1706824238097,-456.33037299,0.000229,2]
[313154954,1706824238196,-251.60714365,0.000229,2]
[313154955,1706824238208,-19908.22222559,0.000229,2]
[313154956,1706824238256,-397.86579353,0.000229,2]
[313154957,1706824238366,-36101.64695355,0.000229,2]
[313154958,1706824238376,-152.56,0.00022988,2]
[313154959,1706824238386,-258.47501316,0.00022998,2]
[313154960,1706824238396,-6459.36522,0.00022998,2]
[313154961,1706824238407,-150.0,0.00023,2]
[313154962,1706824238417,-283.25,0.00023081,2]
[313154963,1706824238426,-168.94,0.00023108,2]
[313154965,1706824238435,-152.56,0.00023152,2]
[313154967,1706824238445,-1268.42,0.00023486,2]
[313154969,1706824238454,-289.87,0.0002395,2]
[313154971,1706824238464,-201.73516107,0.00024,2]
[313154973,1706824238473,-8434.92,0.00024384,2]
[313154975,1706824238483,-1558.96,0.00024384,2]
[313154977,1706824238492,-694.29,0.00024542,2]
[313154979,1706824238501,-2784.0,0.000246,2]
[313154981,1706824238511,-9835.0,0.000246,2]
[313154983,1706824238520,-250.0,0.00024658,2]
[313154985,1706824238530,-6472.82,0.00024658,2]
[313154987,1706824238539,-1905.32780822,0.00025,2]
[313154989,1706824238549,-304.42296087,0.00025,2]
[313154991,1706824238558,-202.63807571,0.00025,2]
[313154993,1706824238568,-2320.50679205,0.00025,2]
[313154995,1706824238577,-167.89104996,0.00025,2]
[313154997,1706824238587,-1588.56278984,0.00025,2]
[313154999,1706824238596,-1250.0,0.00025,3]
[313155001,1706824238606,-936.38551018,0.00025,2]
[313155003,1706824238615,-208.46122201,0.00025,4]
[313155004,1706824238624,-159.19838367,0.00025,2]
[313155006,1706824238634,-868.8,0.00025082,2]
[313155007,1706824238643,-1268.42,0.00025129,2]
[313155008,1706824238652,-202.00744634,0.000253,2]
[313155009,1706824238661,-283.25,0.00025345,2]
[313155010,1706824238670,-694.29,0.0002541,2]
[313155011,1706824238679,-150.0,0.00026079,2]